bitfinex/quotes_SOLUSD_20250305
["timestamp","ask_amount","ask_price","bid_price","bid_amount"]
[1741210372376,0.6905,144.82,144.78,0.0001]
[1741210374064,2.4167,144.82,144.78,0.0001]
[1741210374572,0.6905,144.82,144.78,0.0001]
[1741210376573,0.6905,144.82,144.78,1.8126]
[1741210377251,0.6905,144.82,144.78,0.0001]
[1741210377252,0.14216157,144.81,144.78,0.0001]
[1741210377455,18.79181043,144.81,144.78,0.0001]
[1741210377861,0.6906,144.8,144.78,0.0001]
[1741210380666,126.54964886,144.79,144.78,0.0001]
[1741210380983,126.54964886,144.79,144.76,0.03]
[1741210380984,107.9,144.78,144.76,0.03]
[1741210382067,0.6907,144.77,144.76,0.03]
[1741210384570,27.5907,144.77,144.76,0.03]
[1741210385187,27.5907,144.77,144.76,0.0001]
[1741210393721,0.6906,144.79,144.76,0.0001]
[1741210393911,0.6906,144.79,144.76,6.5948]
[1741210394614,81.0,144.78,144.76,6.5948]
[1741210394815,0.6907,144.77,144.76,6.5948]
[1741210395523,81.6907,144.78,144.76,6.5948]
[1741210397019,81.7237,144.78,144.76,6.5948]
[1741210401118,81.7237,144.78,144.76,0.0001]
[1741210405404,107.9,144.77,144.76,0.0001]
[1741210406320,108.5907,144.77,144.76,0.0001]
[1741210407033,129.04470751,144.77,144.75,0.0001]
[1741210407209,107.9,144.76,144.75,0.0001]
[1741210407613,18.64964886,144.76,144.69,1.747]
[1741210407831,109.70435865,144.75,144.69,1.747]
[1741210408534,2.418,144.74,144.69,1.747]
[1741210409113,0.6908,144.74,144.69,1.747]
[1741210410810,81.6908,144.75,144.69,320.6583]
[1741210411620,81.6908,144.75,144.69,1.747]
[1741210413536,83.4179,144.75,144.69,1.747]
[1741210414414,81.0,144.74,144.69,313.747]
[1741210414614,81.0,144.74,144.69,332.69363411]
[1741210415140,81.0,144.74,144.69,8.6583]
[1741210415538,81.6909,144.74,144.69,8.6583]
[1741210416147,81.0,144.74,144.69,8.6583]
[1741210416315,81.0,144.74,144.69,20.69363411]
[1741210416519,81.0,144.74,144.7,6.0417]
[1741210416739,81.0,144.74,144.71,1.693]
[1741210417450,81.0,144.74,144.72,6.9098]
[1741210417622,81.0,144.77,144.72,6.9098]
[1741210418020,81.0,144.77,144.72,318.9098]
[1741210418221,81.0,144.77,144.72,312.0]
[1741210418524,81.6907,144.77,144.72,312.0]
[1741210419125,81.6907,144.77,144.67,80.9]
[1741210419126,81.0,144.76,144.67,80.9]
[1741210419328,107.9,144.75,144.66,22.17381958]
[1741210419540,0.6908,144.74,144.66,22.17381958]
[1741210419841,0.6908,144.74,144.67,12.03533411]
[1741210420026,0.6908,144.74,144.68,1.45093872]
[1741210420227,108.5908,144.75,144.69,20.13333411]
[1741210420429,81.0,144.75,144.7,13.48605979]
[1741210420636,81.6907,144.77,144.71,12.03533411]
[1741210421645,81.6907,144.77,144.72,1.6768]
[1741210421847,81.0,144.77,144.72,1.6768]
[1741210422034,0.7237,144.78,144.73,6.4242]
[1741210423536,81.7237,144.78,144.72,1.6768]
[1741210423720,107.9,144.77,144.72,1.6768]
[1741210425124,0.6907,144.76,144.72,1.6768]
[1741210426620,2.4176,144.76,144.72,1.6768]
[1741210429052,81.0,144.75,144.72,1.6768]
[1741210429355,81.0,144.74,144.69,0.03]
[1741210429551,81.0,144.73,144.69,0.03]
[1741210431158,0.6909,144.72,144.69,0.03]
[1741210431859,81.6909,144.72,144.69,0.03]
[1741210432148,83.4183,144.72,144.69,0.03]
[1741210435045,81.0,144.71,144.69,0.03]
[1741210435247,81.691,144.7,144.69,0.03]
[1741210435438,0.691,144.7,144.69,0.03]
[1741210437341,2.4183,144.72,144.69,0.03]
[1741210439065,26.9,144.71,144.69,0.03]
[1741210439453,0.691,144.7,144.69,0.03]
[1741210441885,26.9,144.71,144.69,0.03]
[1741210442044,0.6909,144.73,144.69,0.03]
[1741210445965,27.5909,144.74,144.69,0.03]
[1741210446155,81.0,144.73,144.69,0.03]
[1741210447976,81.0,144.75,144.69,12.06533411]
[1741210448273,81.0,144.75,144.69,0.03]
[1741210448478,109.70435865,144.74,144.69,0.03]
[1741210450252,2.4182,144.73,144.69,0.03]
[1741210451080,81.0,144.72,144.69,0.03]
[1741210452679,108.591,144.71,144.69,0.03]
[1741210452866,81.0,144.7,144.69,0.03]
[1741210457088,81.0,144.7,144.69,8.2548]
[1741210458287,81.0,144.75,144.69,8.2548]
[1741210458459,81.0,144.74,144.69,8.2548]
[1741210458857,81.0,144.74,144.69,15.1657]
[1741210459557,81.6908,144.74,144.69,8.2548]
[1741210459772,81.6908,144.74,144.69,15.166]
[1741210461364,81.0,144.74,144.69,15.166]
[1741210461971,81.0,144.74,144.69,327.166]
[1741210464489,81.0,144.74,144.7,12.03533411]
[1741210465193,81.0,144.74,144.7,18.64964886]
[1741210465768,81.0,144.74,144.7,25.56004886]
[1741210466371,81.6908,144.74,144.7,25.56004886]
[1741210466580,81.0,144.74,144.7,25.56004886]
[1741210466891,81.0,144.74,144.69,27.20123411]
[1741210467195,81.0,144.74,144.69,15.1659]
[1741210467367,81.6909,144.74,144.69,15.1659]
[1741210467992,81.6909,144.74,144.69,33.81554886]
[1741210468296,81.6909,144.74,144.69,339.20123411]
[1741210468480,81.0,144.74,144.69,339.20123411]
[1741210468691,81.0,144.74,144.7,18.64964886]
[1741210470493,81.0,144.74,144.7,25.56034886]
[1741210470696,81.6909,144.74,144.7,18.64964886]
[1741210471394,81.6909,144.74,144.69,8.2548]
[1741210471582,83.4181,144.74,144.69,1.7806]
[1741210471976,81.0,144.74,144.69,8.6918]
[1741210472297,81.0,144.74,144.7,30.68498297]
[1741210472601,81.0,144.74,144.71,13.3586]
[1741210472776,81.0,144.74,144.71,25.39393411]
[1741210473102,0.033,144.76,144.71,25.39393411]
[1741210473303,0.033,144.76,144.71,26.84449878]
[1741210473906,0.033,144.76,144.71,19.93449878]
[1741210474070,0.7238,144.76,144.71,18.48393411]
[1741210474692,0.033,144.75,144.71,18.48393411]
[1741210475491,0.033,144.75,144.71,330.48393411]
[1741210476191,0.033,144.75,144.73,13.84453411]
[1741210477296,0.033,144.75,144.74,20.09997888]
[1741210477598,0.033,144.75,144.74,32.13531299]
[1741210478375,0.033,144.75,144.74,39.04421299]
[1741210479396,0.033,144.75,144.74,339.00887888]
[1741210479585,0.033,144.75,144.74,337.55854886]
[1741210480297,0.033,144.75,144.74,330.64964886]
[1741210482876,0.033,144.75,144.74,337.55854886]
[1741210483707,0.033,144.75,144.74,349.87820611]
[1741210484578,0.033,144.75,144.74,37.87820611]
[1741210484773,0.033,144.75,144.74,39.04406705]
[1741210485005,0.033,144.75,144.74,32.41949019]
[1741210485307,0.033,144.75,144.74,27.29305608]
[1741210486590,0.033,144.75,144.74,39.32839019]
[1741210487602,0.033,144.75,144.74,351.32839019]
[1741210487801,0.033,144.75,144.74,349.87820611]
[1741210489113,0.033,144.75,144.74,25.842872]
[1741210489312,0.033,144.75,144.74,18.64964886]
[1741210491588,0.033,144.75,144.74,25.55854886]
[1741210491890,0.033,144.75,144.74,39.32850096]
[1741210492101,0.033,144.75,144.74,351.32850096]
[1741210492413,0.033,144.75,144.74,349.87820611]
[1741210496011,0.033,144.75,144.74,349.59388297]
[1741210496214,0.033,144.75,144.74,349.87820611]
[1741210497414,0.033,144.75,144.74,330.64964886]
[1741210498920,0.033,144.75,144.74,337.55854886]
[1741210499919,0.033,144.75,144.74,349.59388297]
[1741210500126,0.033,144.75,144.74,349.62388297]
[1741210500421,0.033,144.75,144.74,37.62388297]
[1741210500598,0.033,144.75,144.74,25.58854886]
[1741210501198,0.033,144.75,144.74,37.62388297]
[1741210501403,0.033,144.75,144.74,12.06533411]
[1741210501726,0.033,144.75,144.74,0.03]
[1741210502617,0.033,144.76,144.74,0.03]
[1741210502618,0.033,144.76,144.75,19.07613357]
[1741210502822,0.033,144.76,144.74,99.87423411]
[1741210503026,0.033,144.76,144.74,6.9389]
[1741210503322,0.033,144.76,144.74,25.58854886]
[1741210503524,0.033,144.76,144.75,351.04366538]
[1741210503698,0.033,144.76,144.75,349.59338297]
[1741210505422,0.033,144.76,144.75,337.55804886]
[1741210505719,0.033,144.76,144.75,349.59338297]
[1741210506127,0.033,144.76,144.75,337.55804886]
[1741210506301,0.033,144.76,144.75,349.59338297]
[1741210506625,0.033,144.78,144.77,0.14216157]
[1741210506790,0.033,144.78,144.77,113.46116822]
[1741210507216,0.033,144.78,144.77,113.31900665]
[1741210508210,0.033,144.78,144.77,101.28367254]
[1741210509216,0.033,144.78,144.77,120.22650665]
[1741210509691,0.033,144.78,144.77,432.22650665]
[1741210509898,0.033,144.78,144.77,430.77680611]
[1741210510096,0.033,144.78,144.77,423.86930611]
[1741210510627,0.033,144.78,144.77,430.77680611]
[1741210511009,0.033,144.78,144.77,430.49248297]
[1741210511341,0.033,144.78,144.77,312.0]
[1741210511626,0.033,144.78,144.74,80.93]
[1741210511826,0.033,144.78,144.75,18.64964886]
[1741210514540,0.033,144.78,144.76,1.45018928]
[1741210514730,0.033,144.78,144.76,13.48552339]
[1741210515248,0.033,144.78,144.77,12.03533411]
[1741210515547,0.033,144.78,144.77,18.94283411]
[1741210515748,0.033,144.78,144.77,19.22715725]
[1741210516115,0.033,144.78,144.76,20.39322339]
[1741210517625,0.033,144.78,144.77,25.55714886]
[1741210517940,0.033,144.78,144.77,337.55714886]
[1741210518532,0.033,144.78,144.77,330.64964886]
[1741210519126,0.033,144.78,144.77,337.55714886]
[1741210520372,0.033,144.78,144.77,330.64964886]
[1741210521069,0.033,144.78,144.77,18.64964886]
[1741210521651,0.033,144.78,144.77,25.55714886]
[1741210522962,0.033,144.78,144.77,18.64964886]
[1741210523768,0.033,144.78,144.77,25.55714886]
[1741210524152,0.033,144.78,144.77,337.55714886]
[1741210524953,0.033,144.78,144.77,337.841472]
[1741210525268,0.033,144.78,144.77,25.841472]
[1741210525568,0.033,144.78,144.77,27.29138025]
[1741210526142,0.033,144.78,144.77,27.00705711]
[1741210526344,0.033,144.78,144.77,27.29138025]
[1741210526562,0.033,144.78,144.77,39.32671436]
[1741210528267,0.033,144.78,144.77,351.32671436]
[1741210528482,0.033,144.78,144.77,330.933972]
[1741210529244,0.033,144.78,144.77,337.841472]
[1741210530283,0.033,144.78,144.77,312.0]
[1741210530457,0.033,144.78,144.74,0.03]
[1741210532756,81.0,144.77,144.74,0.03]
[1741210534043,107.9,144.76,144.74,0.03]
[1741210534245,6.6012,144.75,144.74,0.03]
[1741210534447,33.5012,144.75,144.74,0.03]
[1741210534651,34.192,144.75,144.74,0.03]
[1741210539080,7.292,144.75,144.74,0.03]
[1741210539257,7.292,144.75,144.74,0.0001]
[1741210539754,7.292,144.75,144.69,0.03]
[1741210540079,1.80435865,144.74,144.69,0.03]
[1741210540874,20.53765865,144.75,144.69,0.03]
[1741210541084,15.2791,144.75,144.69,0.03]
[1741210544984,107.9,144.74,144.69,0.03]
[1741210545158,0.6909,144.73,144.69,0.03]
[1741210547988,81.0,144.73,144.69,0.03]
[1741210548160,81.0,144.73,144.71,312.0]
[1741210549270,27.5908,144.75,144.69,0.03]
[1741210549271,107.9,144.72,144.69,0.03]
[1741210549456,2.4181,144.74,144.69,0.03]
[1741210549457,81.0,144.71,144.69,0.03]
[1741210549660,81.0,144.7,144.69,0.03]
[1741210550281,0.691,144.71,144.69,0.03]
[1741210550797,81.691,144.72,144.69,0.03]
[1741210553787,83.4184,144.72,144.69,0.03]
[1741210554098,81.0,144.71,144.69,0.03]
[1741210554575,0.691,144.7,144.69,0.03]
[1741210557904,81.691,144.71,144.69,0.03]
[1741210558677,81.0,144.71,144.69,0.03]
[1741210559471,81.0,144.74,144.69,0.03]
[1741210559795,81.7239,144.74,144.69,312.03]
[1741210561365,83.4511,144.74,144.69,312.03]
[1741210561562,83.4511,144.74,144.69,0.03]
[1741210564698,83.4511,144.74,144.69,312.03]
[1741210565398,81.0,144.73,144.69,0.03]
[1741210565898,107.9,144.72,144.69,0.03]
[1741210567594,0.691,144.71,144.69,0.03]
[1741210567809,81.0,144.7,144.69,0.03]
[1741210568401,81.691,144.7,144.69,0.03]
[1741210568607,81.0,144.7,144.69,0.03]
[1741210569510,81.691,144.7,144.69,0.03]
[1741210570093,0.691,144.7,144.69,0.03]
[1741210570495,0.691,144.71,144.69,0.03]
[1741210570703,1.80435865,144.7,144.69,0.03]
[1741210570975,107.9,144.69,144.63,0.03]
[1741210571193,109.70435865,144.68,144.63,0.03]
[1741210571481,18.64964886,144.67,144.63,0.03]
[1741210571700,1.80435865,144.66,144.63,0.03]
[1741210571884,107.9,144.65,144.63,0.03]
[1741210572407,1.80435865,144.64,144.63,0.03]
[1741210572583,29.39565865,144.64,144.63,0.03]
[1741210573111,31.12405865,144.64,144.61,1.4807297]
[1741210574016,107.9,144.63,144.61,1.4807297]
[1741210574311,109.70435865,144.62,144.61,1.4807297]
[1741210574508,110.39575865,144.62,144.61,1.4807297]
[1741210574687,110.39575865,144.62,144.59,0.03]
[1741210574688,112.26652022,144.62,144.59,0.03]
[1741210574891,126.69181043,144.61,144.52,1.826]
[1741210575088,0.14216157,144.58,144.51,10.80882724]
[1741210575402,107.9,144.57,144.47,6.9217]
[1741210575604,107.9,144.56,144.46,106.67177365]
[1741210575783,107.9,144.56,144.47,37.49932251]
[1741210575987,107.9,144.56,144.49,18.64964886]
[1741210576202,107.9,144.56,144.49,330.64964886]
[1741210576415,107.9,144.56,144.49,312.7221855]
[1741210577009,107.9,144.56,144.49,319.6428855]
[1741210577703,81.0,144.56,144.5,18.64964886]
[1741210577878,81.0,144.56,144.5,25.23484886]
[1741210578085,81.0,144.56,144.51,1.7638]
[1741210579286,81.0,144.56,144.51,8.6836]
[1741210580213,81.6917,144.56,144.49,0.7221855]
[1741210580381,81.0,144.55,144.49,0.7221855]
[1741210581278,81.0,144.55,144.49,7.6429855]
[1741210581706,81.6918,144.55,144.49,0.7221855]
[1741210582283,81.6918,144.55,144.49,7.6429855]
[1741210583187,81.6918,144.55,144.49,319.6429855]
[1741210583610,81.0,144.54,144.49,319.6429855]
[1741210584106,81.0,144.54,144.49,312.7521855]
[1741210584107,81.6918,144.54,144.49,312.7521855]
[1741210584303,81.6918,144.54,144.49,0.7521855]
[1741210584503,81.0,144.53,144.49,0.7521855]
[1741210585808,109.70435865,144.52,144.49,0.7521855]
[1741210586376,20.31094886,144.51,144.49,0.7521855]
[1741210586581,8.2257,144.51,144.49,0.7521855]
[1741210586976,128.35400751,144.5,144.49,0.7521855]
[1741210587176,18.64964886,144.48,144.4,312.0]
[1741210587392,115.96435865,144.47,144.35,18.84967365]
[1741210587611,4.0844,144.44,144.33,6.9284]
[1741210587834,128.35400751,144.43,144.33,6.9284]
[1741210588006,128.35400751,144.43,144.32,1.8599584]
[1741210588204,18.64964886,144.41,144.32,1.8599584]
[1741210588408,107.9,144.4,144.32,1.8599584]
[1741210588733,107.9,144.4,144.32,27.63843205]
[1741210588950,107.9,144.39,144.32,1.8599584]
[1741210589101,107.9,144.39,144.32,8.7886584]
[1741210589506,18.64964886,144.37,144.32,1.8599584]
[1741210589722,0.14216157,144.35,144.32,1.8599584]
[1741210590298,0.14216157,144.33,144.32,1.8599584]
[1741210590529,26.9,144.35,144.32,1.8599584]
[1741210590840,0.14216157,144.39,144.32,1.8599584]
[1741210590999,0.14216157,144.37,144.32,1.8599584]
[1741210591630,2.63912022,144.37,144.32,1.8599584]
[1741210591841,0.14216157,144.37,144.32,1.8599584]
[1741210592141,0.14216157,144.37,144.32,8.7889584]
[1741210592515,26.9,144.36,144.32,8.7889584]
[1741210592830,26.9,144.38,144.32,8.7889584]
[1741210593520,26.9,144.38,144.32,320.7889584]
[1741210593912,26.9,144.38,144.32,8.7889584]
[1741210596923,26.9,144.38,144.32,44.96123205]
[1741210597140,107.9,144.41,144.32,44.96123205]
[1741210597453,107.9,144.4,144.32,44.96123205]
[1741210597640,81.0,144.39,144.34,20.51807365]
[1741210597838,81.0,144.39,144.35,6.9276]
[1741210602850,81.0,144.38,144.35,6.9276]
[1741210604358,81.0,144.38,144.35,24.2466]
[1741210605234,81.0,144.38,144.35,6.9276]
[1741210605857,107.9,144.41,144.35,318.9276]
[1741210606756,81.0,144.41,144.35,355.09627365]
[1741210607957,81.0,144.41,144.35,337.77727365]
[1741210609049,81.0,144.43,144.38,18.84967365]
[1741210609232,81.0,144.43,144.38,25.35497365]
[1741210609432,81.0,144.43,144.38,6.5053]
[1741210610163,81.0,144.43,144.39,6.9256]
[1741210614165,81.0,144.43,144.38,6.5053]
[1741210614343,81.0,144.43,144.38,13.4312]
[1741210614547,81.0,144.43,144.38,32.28087365]
[1741210614863,81.0,144.43,144.38,13.4312]
[1741210615852,81.0,144.43,144.38,30.7466]
[1741210616677,81.0,144.43,144.39,18.84967365]
[1741210616875,81.0,144.43,144.4,18.84967365]
[1741210617176,107.9,144.48,144.42,18.84967365]
[1741210617378,81.0,144.47,144.41,20.53637365]
[1741210618076,81.0,144.47,144.42,18.84967365]
[1741210618371,81.0,144.47,144.43,18.84967365]
[1741210618667,0.033,144.49,144.44,18.84967365]
[1741210618871,0.033,144.49,144.46,18.84967365]
[1741210619066,0.033,144.49,144.48,18.84967365]
[1741210619450,0.033,144.49,144.48,20.57907365]
[1741210620165,0.033,144.49,144.48,332.57907365]
[1741210620963,81.0,144.56,144.48,439.47650722]
[1741210621153,81.0,144.56,144.53,18.84967365]
[1741210621354,26.9,144.6,144.53,18.84967365]
[1741210621355,81.6916,144.59,144.53,18.84967365]
[1741210621564,81.0,144.58,144.54,18.84967365]
[1741210622666,81.0,144.58,144.55,18.84967365]
[1741210622875,91.80882724,144.61,144.55,18.84967365]
[1741210623084,91.80882724,144.61,144.56,1.742]
[1741210623673,81.0,144.61,144.56,20.59167365]
[1741210624163,81.0,144.61,144.56,332.59167365]
[1741210625257,81.6915,144.61,144.56,313.742]
[1741210625962,83.4202,144.61,144.53,87.0682]
[1741210626162,107.9,144.6,144.53,6.1682]
[1741210626478,107.9,144.59,144.52,1.7498]
[1741210627177,0.6916,144.58,144.52,1.7498]
[1741210627382,81.0,144.57,144.52,1.7498]
[1741210628865,81.0,144.57,144.49,400.9879]
[1741210629193,0.6918,144.55,144.49,426.75837365]
[1741210630866,0.6918,144.55,144.5,1.45275369]
[1741210631066,0.6918,144.55,144.49,426.75837365]
[1741210631387,0.6918,144.55,144.5,1.45267834]
[1741210632067,81.0,144.56,144.51,18.84967365]
[1741210633490,81.0,144.56,144.52,18.84967365]
[1741210633673,81.0,144.62,144.54,18.84967365]
[1741210633869,81.0,144.61,144.54,18.84967365]
[1741210634069,81.6915,144.61,144.55,6.918]
[1741210634270,0.033,144.59,144.55,6.918]
[1741210634486,0.033,144.59,144.55,106.66767365]
[1741210634687,0.033,144.59,144.56,1.45208078]
[1741210634888,0.033,144.59,144.56,3.26158078]
[1741210635268,0.033,144.59,144.56,28.64595443]
[1741210635493,0.033,144.59,144.57,18.64964886]
[1741210635673,0.033,144.59,144.57,330.64964886]
[1741210636201,0.033,144.59,144.57,337.56634886]
[1741210636885,0.033,144.59,144.57,312.0]
[1741210637089,0.033,144.59,144.56,8.3442]
[1741210639695,0.033,144.59,144.52,6.4747]
[1741210639872,0.033,144.59,144.52,87.3747]
[1741210640072,0.033,144.59,144.52,399.3747]
[1741210640777,0.033,144.59,144.52,406.2941]
[1741210640980,0.033,144.59,144.53,1.452372]
[1741210641300,0.033,144.59,144.53,1.45239036]
[1741210641595,0.033,144.59,144.53,20.30206401]
[1741210641802,0.033,144.59,144.54,37.49932251]
[1741210642005,0.033,144.59,144.54,18.64964886]
[1741210642404,0.033,144.59,144.54,25.56764886]
[1741210643207,0.033,144.59,144.54,106.46764886]
[1741210645005,0.033,144.59,144.54,418.46764886]
[1741210645207,0.033,144.59,144.55,1.45219433]
[1741210645413,0.033,144.59,144.56,18.64964886]
[1741210645580,0.033,144.59,144.57,1.45191696]
[1741210646087,0.033,144.59,144.57,20.30159061]
[1741210646406,0.033,144.59,144.58,37.49932251]
[1741210646703,0.033,144.59,144.58,118.39932251]
[1741210646907,0.033,144.59,144.58,120.27759354]
[1741210647210,0.033,144.59,144.58,122.09165511]
[1741210647380,0.033,144.59,144.58,129.00815511]
[1741210648706,0.033,144.59,144.58,441.00815511]
[1741210649014,0.033,144.59,144.58,448.06756879]
[1741210649204,0.033,144.64,144.63,0.28432314]
[1741210649507,0.033,144.64,144.63,108.34159652]
[1741210649806,0.033,144.64,144.63,127.19127017]
[1741210650198,0.033,144.64,144.63,127.33343174]
[1741210650977,0.033,144.64,144.63,131.12173174]
[1741210651395,0.033,144.64,144.63,129.12173174]
[1741210651601,0.033,144.64,144.63,131.12173174]
[1741210652276,0.033,144.64,144.63,441.12173174]
[1741210652481,0.033,144.64,144.63,439.67036879]
[1741210652679,0.033,144.64,144.63,413.76443357]
[1741210652899,0.033,144.64,144.63,120.18762251]
[1741210653205,0.033,144.64,144.63,127.52820722]
[1741210653410,0.033,144.64,144.63,127.67036879]
[1741210653596,0.033,144.64,144.63,129.12154226]
[1741210653796,0.033,144.64,144.63,103.07344547]
[1741210654195,0.033,144.64,144.63,103.21560704]
[1741210654703,0.033,144.64,144.63,109.98754547]
[1741210654912,0.033,144.64,144.63,110.12970704]
[1741210655111,0.033,144.64,144.63,103.21560704]
[1741210656121,0.033,144.64,144.63,110.12970704]
[1741210656917,0.033,144.64,144.63,128.97938069]
[1741210657114,0.033,144.64,144.63,129.12154226]
[1741210659314,0.033,144.64,144.63,131.12154226]
[1741210660418,0.033,144.64,144.63,443.12154226]
[1741210660628,0.033,144.7,144.68,18.84967365]
[1741210660795,0.033,144.7,144.68,18.933972]
[1741210662197,0.033,144.7,144.67,101.20059941]
[1741210662507,0.033,144.7,144.67,80.9]
[1741210663733,0.033,144.7,144.65,18.64964886]
[1741210664038,0.033,144.7,144.64,392.9]
[1741210665535,7.7777,144.7,144.63,18.64964886]
[1741210665927,2.4189,144.69,144.63,18.64964886]
[1741210666225,0.6911,144.69,144.63,18.64964886]
[1741210666555,0.6911,144.69,144.64,0.14216157]
[1741210666742,0.6911,144.69,144.64,0.28432314]
[1741210668539,0.6911,144.69,144.64,312.28432314]
[1741210668739,0.6911,144.69,144.63,18.64964886]
[1741210669628,0.6911,144.69,144.63,18.64964886]
[1741210670127,0.6911,144.69,144.63,25.56374886]
[1741210670623,8.4688,144.7,144.64,0.28432314]
[1741210671736,8.4688,144.7,144.65,18.64964886]
[1741210672039,0.033,144.69,144.65,18.64964886]
[1741210672357,0.033,144.69,144.66,0.28432314]
[1741210672722,0.033,144.69,144.68,0.28432314]
[1741210673350,0.033,144.69,144.68,99.97613357]
[1741210673846,0.033,144.69,144.68,106.88793357]
[1741210674018,0.033,144.69,144.68,99.54964886]
[1741210674224,0.033,144.69,144.68,106.46144886]
[1741210674845,0.033,144.69,144.68,99.54964886]
[1741210675342,0.033,144.69,144.68,80.9]
[1741210675548,0.033,144.69,144.66,312.0]
[1741210675719,0.033,144.69,144.63,87.8439]
[1741210675919,0.033,144.69,144.64,18.64964886]
[1741210678547,0.033,144.69,144.64,44.41302251]
[1741210678749,0.033,144.69,144.66,18.64964886]
[1741210678925,0.033,144.69,144.67,0.28432314]
[1741210679124,0.033,144.69,144.68,25.98793357]
[1741210679344,0.033,144.69,144.68,46.2886123]
[1741210680856,0.033,144.69,144.68,44.69544565]
[1741210681025,0.033,144.69,144.68,25.845772]
[1741210681583,0.033,144.69,144.68,44.69544565]
[1741210682237,0.033,144.69,144.68,356.69544565]
[1741210682642,0.033,144.69,144.68,330.933972]
[1741210683149,0.033,144.69,144.68,337.845772]
[1741210683368,0.033,144.69,144.68,330.933972]
[1741210684038,0.033,144.69,144.68,18.64964886]
[1741210684656,0.033,144.69,144.65,80.9]
[1741210685040,0.033,144.69,144.66,18.64964886]
[1741210685943,0.033,144.69,144.65,80.9]
[1741210686143,0.033,144.69,144.66,18.64964886]
[1741210687061,0.033,144.69,144.68,18.933972]
[1741210687242,0.033,144.69,144.68,37.78364565]
[1741210687563,0.033,144.69,144.68,18.933972]
[1741210688062,0.033,144.69,144.68,25.845772]
[1741210688760,0.033,144.69,144.66,18.84967365]
[1741210689762,0.033,144.69,144.67,18.64964886]
[1741210690149,0.033,144.69,144.67,25.56184886]
[1741210690352,0.033,144.69,144.68,0.28432314]
[1741210690546,0.033,144.69,144.68,430.82580722]
[1741210690962,0.033,144.69,144.68,411.833972]
[1741210691135,0.033,144.69,144.68,411.54964886]
[1741210691339,0.033,144.69,144.68,99.54964886]
[1741210695552,0.033,144.69,144.68,80.9]
[1741210695745,0.033,144.69,144.65,25.76267365]
[1741210695971,0.033,144.69,144.66,0.28432314]
[1741210696575,0.033,144.69,144.66,18.933972]
[1741210697370,0.033,144.69,144.66,330.933972]
[1741210697573,0.033,144.69,144.66,337.846572]
[1741210700186,0.033,144.69,144.68,0.28432314]
[1741210700351,0.033,144.69,144.68,37.92580722]
[1741210702474,0.033,144.69,144.68,125.87976879]
[1741210703065,0.033,144.7,144.69,0.14216157]
[1741210703264,0.033,144.7,144.69,432.27632133]
[1741210703467,0.033,144.7,144.69,430.82580722]
[1741210704283,0.033,144.7,144.69,437.73710722]
[1741210704482,0.033,144.7,144.69,437.87926879]
[1741210705381,0.033,144.7,144.69,411.97613357]
[1741210705584,0.033,144.7,144.69,99.97613357]
[1741210705782,0.033,144.7,144.69,99.833972]
[1741210705996,0.033,144.7,144.67,80.9]
[1741210706280,0.033,144.7,144.68,25.56104886]
[1741210706785,0.033,144.7,144.68,18.64964886]